Workbook

Sheet DONNEES
A1: DONNEES
B4: DENOMINATION DE LA SOCIETE | D4: STE XXXXXXX
B6: FORMEJURIDIQUE | D6: SARL | E6: CAPITAL | G6: 100000
B8: N° PATENTE | D8: 172172172
B10: N° IF | D10: 414141
B12: N° RC | D12: 222222
B14: N° CNSS | D14: 123456789 | G14: Part patronale | H14: =13.46%-4.48%+6.4%+1.6% -> 0.1698 | I14: Part salariale | J14: 0.0448
B16: N°CIMR | D16: 123456789 | G16: Part patronale | H16: 0.039 | I16: Part salariale | J16: 0.03
B18: N° ASSURANCE | D18: 123456789 | G18: Part patronale | H18: 0.04 | I18: Part salariale | J18: 0.03
B20: ADRESSE
B22: TEL | D22: 000000000
B24: FAX | D24: 00000000
C28: Barème d'IR Mensual | H28: Barème d'anciennté
C29: Revenus | D29: Taux | E29: ∑ à déduire | H29: Nbr années | I29: Taux | K29: S.F.
C30: 0 | D30: 0 | E30: 0 | H30: 0 | I30: 0 | K30: M
C31: 2001 | D31: 0.1 | E31: 250 | H31: 2 | I31: 0.05 | K31: C
C32: 4167 | D32: 0.2 | E32: 666.67 | H32: 5 | I32: 0.1 | K32: D
C33: 5001 | D33: 0.3 | E33: 1166.67 | H33: 12 | I33: 0.15 | K33: V
C34: 6667 | D34: 0.34 | E34: 1433.33 | H34: 20 | I34: 0.2
C35: 15001 | D35: 0.38 | E35: 2033.33 | H35: 25 | I35: 0.25
C37: FONCTIONS | H37: COTISATION AMO
C38: D. Général | H38: Part patronale | I38: Part salariale
C39: D.Financier | H39: 0.0411 | I39: 0.0226
C40: Technicien
C41: Comptable | H41: COTISATION CNSS
C42: Technicien | H42: Part patronale | I42: Part salariale
C43: Informaticien | H43: 0.1698 | I43: 0.0448
C44: Secrétaire
C45: Ouvrier
C46: Concierge
C47: Ingénieur

Sheet B.D. ETAT DE PAIE
B2: Période de | C2: ETAT DE PAIE
B4: 2022-01-31
A6: 1 | B6: 2 | C6: 3 | D6: 4 | E6: 5 | F6: 6 | G6: 7 | H6: 8 | I6: 9 | J6: 10 | K6: 11 | L6: 12 | M6: 13 | N6: 14 | O6: 15 | P6: 16 | Q6: 17 | R6: 18 | S6: 19 | T6: 20 | U6: 21 | V6: 22 | W6: 23 | X6: 24 | Y6: 25 | Z6: 26 | AA6: 27 | AB6: 28 | AC6: 29 | AD6: 30 | AE6: 31 | AF6: 32 | AG6: 33 | AH6: 34 | AI6: 35 | AJ6: 36 | AK6: 37 | AL6: 38 | AM6: 39 | AN6: 40 | AO6: 41 | AP6: 42 | AQ6: 43 | AR6: 44
A7: IMMATRICLATION | B7: Nom et prénom | C7: Dates Naissances | D7: Dates d'embauche | E7: Fonction | F7: Situation Fam | G7: Nombre d'enfants | H7: H,N | I7: CHN | J7: Salaire de base 1 | K7: HS | L7: HS à 25% | M7: CHS à 25% | N7: HS à 50% | O7: CHS à 50% | P7: HS à 100% | Q7: CHS à 100% | R7: Salaire de Base 2 | S7: Prime d'anciennté | T7: Prime de rendement | U7: Prime de responsabilité | V7: Prime d'assiduité | W7: Avantages en Natures | X7: Avantages en Espèces | Y7: AF | Z7: FDJ | AA7: Salaire Brut | AB7: Salaire Brut Imposable | AC7: IMMAT CNSS | AD7: CNSS 4,48% | AE7: AMO 2,26% | AF7: IMMAT CIMR | AG7: CIMR 6% | AH7: IMMAT ASSUR | AI7: Assurance 3% | AJ7: Frais Prof 17% | AK7: Salaire Imposable | AL7: Logement Economique | AM7: Crédit log Traite | AN7: Crédit log Intérêt | AO7: SNI | AP7: IR BRUT | AQ7: IR NET | AR7: Net à payer
A8: 0001 | B8: SAID SAID | C8: 1980-03-02 | D8: 1990-01-01 | E8: D. Général | F8: M | G8: 1 | H8: 190 | I8: 72 | J8: =H8*I8 -> 13680 | K8: =L8+N8+P8 -> 24 | L8: 10 | M8: =(I8*25%)+I8 -> 90 | N8: 6 | O8: =(I8*50%)+I8 -> 108 | P8: 8 | Q8: =(I8*100%)+I8 -> 144 | R8: =J8+L8*M8+N8*O8+P8*Q8 -> 16380 | S8: =VLOOKUP(($B$4-D8)/365,Barèmes_d_an,2)*R8 -> 4095 | T8: =K8*10 -> 240 | U8: 1000 | V8: 500 | W8: 3000 | X8: 500 | Y8: =IF(G8>6,(3*150)+(3*36),IF(G8>3,(3*150)+(G8-3)*36,150*G8)) -> 150 | Z8: 500 | AA8: =R8+S8+T8+U8+V8+W8+X8+Y8+Z8 -> 26365 | AB8: =AA8-Y8-Z8 -> 25715 | AC8: 159159159 | AD8: =IF((AB8>=6000),6000*DONNEES!$J$14,AB8*DONNEES!$J$14) -> 268.8 | AE8: =AB8*DONNEES!$I$39 -> 581.159 | AF8: 224321 | AG8: =IF((AB8-W8)*DONNEES!$J$16>=900,900,(AB8-W8)*DONNEES!$J$16) -> 681.45 | AH8: 321456 | AI8: =R8*DONNEES!$J$18 -> 491.4 | AJ8: =IF((AB8-W8-X8)*17%>=2000,2000,(AB8-W8-X8)*17%) -> 2000 | AK8: =AB8-AD8-AE8-AG8-AI8-AJ8 -> 21692.191 | AL8: non | AM8: 9000 | AN8: 1000 | AO8: =IF(AL8="oui",IF((AM8+AN8)>=AK8*10%,AK8-(AK8*10%),AK8-(AM8+AN8)),IF(AN8>=AK8*10%,AK8-(AK8*10%),AK8-AN8)) -> 20692.191 | AP8: =AO8*VLOOKUP(AO8,IR,2)-VLOOKUP(AO8,IR,3) -> 5829.70258 | AQ8: =IF(AP8-IF(G8=0,0,IF((G8+1)<=6,(G8+1)*15,6*15))<0,0,AP8-IF(G8=0,0,IF((G8+1)<=6,(G8+1)*15,6*15))) -> 5799.70258 | AR8: =AA8-AD8-AE8-AG8-AI8-AQ8 -> 18542.48842 | AT8: =IF(OR(H8>190,I8<9.66),"Vous n'avez pas repéctez le Droit de travail qui stipule que nbre HN<=190 et CHN>=9,66","") -> 
A9: =A8+1 -> 2 | B9: SAID SAID | C9: 1960-06-01 | D9: 1981-07-26 | E9: D.Financier | F9: M | G9: 4 | H9: 190 | I9: 66 | J9: =H9*I9 -> 12540 | K9: =L9+N9+P9 -> 0 | L9: 0 | M9: =(I9*25%)+I9 -> 82.5 | N9: 0 | O9: =(I9*50%)+I9 -> 99 | P9: 0 | Q9: =(I9*100%)+I9 -> 132 | R9: =J9+L9*M9+N9*O9+P9*Q9 -> 12540 | S9: =VLOOKUP(($B$4-D9)/365,Barèmes_d_an,2)*R9 -> 3135 | T9: 0 | Y9: 486 | AA9: =R9+S9+T9+U9+V9+W9+X9+Y9+Z9 -> 16161 | AB9: =AA9-Y9-Z9 -> 15675 | AC9: 159159160 | AD9: =IF((AB9>=6000),6000*DONNEES!$J$14,AB9*DONNEES!$J$14) -> 268.8 | AE9: =AB9*DONNEES!$I$39 -> 354.255 | AF9: 224322 | AG9: =IF((AB9-W9)*DONNEES!$J$16>=900,900,(AB9-W9)*DONNEES!$J$16) -> 470.25 | AH9: 321457 | AI9: =R9*DONNEES!$J$18 -> 376.2 | AJ9: =IF((AB9-W9-X9)*17%>=2000,2000,(AB9-W9-X9)*17%) -> 2000 | AK9: =AB9-AD9-AE9-AG9-AI9-AJ9 -> 12205.495 | AO9: =IF(AL9="oui",IF((AM9+AN9)>=AK9*10%,AK9-(AK9*10%),AK9-(AM9+AN9)),IF(AN9>=AK9*10%,AK9-(AK9*10%),AK9-AN9)) -> 12205.495 | AP9: =AO9*VLOOKUP(AO9,IR,2)-VLOOKUP(AO9,IR,3) -> 2716.5383 | AQ9: =IF(AP9-IF(G9=0,0,IF((G9+1)<=6,(G9+1)*15,6*15))<0,0,AP9-IF(G9=0,0,IF((G9+1)<=6,(G9+1)*15,6*15))) -> 2641.5383 | AR9: =AA9-AD9-AE9-AG9-AI9-AQ9 -> 12049.9567 | AT9: =IF(OR(H9>190,I9<9.66),"Vous n'avez pas repéctez le Droit de travail qui stipule que nbre HN<=190 et CHN>=9,66","") -> 
A10: =A9+1 -> 3 | B10: SAID SAID | C10: 1970-12-12 | D10: 2000-02-15 | E10: Comptable | F10: M | G10: 4 | H10: 160 | I10: 28.13 | J10: 4500.8 | K10: =L10+N10+P10 -> 16 | L10: 8 | M10: 35.1625 | N10: 4 | O10: 42.195 | P10: 4 | Q10: 56.26 | R10: 5175.92 | S10: 1035.184 | T10: 160 | Y10: 486 | Z10: 400 | AA10: 7257.104 | AB10: 6371.104 | AC10: 159159161 | AD10: =IF((AB10>=6000),6000*DONNEES!$J$14,AB10*DONNEES!$J$14) -> 268.8 | AE10: =AB10*DONNEES!$I$39 -> 143.9869504 | AF10: 224323 | AG10: =IF((AB10-W10)*DONNEES!$J$16>=900,900,(AB10-W10)*DONNEES!$J$16) -> 191.13312 | AH10: 321458 | AI10: =R10*DONNEES!$J$18 -> 155.2776 | AJ10: 1083.08768 | AK10: 4528.81865 | AO10: 4528.81865 | AP10: 239.0937299 | AQ10: 164.0937299 | AR10: 6333.8126
A11: 4 | B11: SAID SAID | C11: 1977-08-10 | D11: 2006-01-01 | E11: Technicien | F11: C | G11: 0 | H11: 190 | I11: 24.04 | J11: 4567.6 | K11: =L11+N11+P11 -> 0 | L11: 0 | M11: 30.05 | N11: 0 | O11: 36.06 | P11: 0 | Q11: 48.08 | R11: 4567.6 | S11: 685.14 | T11: 0 | Y11: 0 | AA11: 5252.74 | AB11: 5252.74 | AC11: 159159162 | AD11: =IF((AB11>=6000),6000*DONNEES!$J$14,AB11*DONNEES!$J$14) -> 235.322752 | AE11: =AB11*DONNEES!$I$39 -> 118.711924 | AF11: 224324 | AG11: =IF((AB11-W11)*DONNEES!$J$16>=900,900,(AB11-W11)*DONNEES!$J$16) -> 157.5822 | AH11: 321459 | AI11: =R11*DONNEES!$J$18 -> 137.028 | AJ11: 892.9658 | AK11: 3711.129324 | AL11: non | AM11: 1600 | AN11: 600 | AO11: 3340.016392 | AP11: 84.00163916 | AQ11: 84.00163916 | AR11: 4520.093485
A12: 5 | B12: SAID SAID | C12: 1975-05-01 | D12: 1980-01-01 | E12: Technicien | F12: M | G12: 6 | H12: 190 | I12: 14.4 | J12: 2736 | K12: =L12+N12+P12 -> 24 | L12: 4 | M12: 18 | N12: 12 | O12: 21.6 | P12: 8 | Q12: 28.8 | R12: 3297.6 | S12: 824.4 | T12: 240 | Y12: 558 | AA12: 4920 | AB12: 4362 | AC12: 159159163 | AD12: =IF((AB12>=6000),6000*DONNEES!$J$14,AB12*DONNEES!$J$14) -> 195.4176 | AE12: =AB12*DONNEES!$I$39 -> 98.5812 | AF12: 224325 | AG12: =IF((AB12-W12)*DONNEES!$J$16>=900,900,(AB12-W12)*DONNEES!$J$16) -> 130.86 | AH12: 321460 | AI12: =R12*DONNEES!$J$18 -> 98.928 | AJ12: 741.54 | AK12: 3096.6732 | AO12: 3096.6732 | AP12: 59.66732 | AQ12: 0 | AR12: 4396.2132
A13: 6 | B13: SAID SAID | C13: 1965-01-06 | D13: 1999-06-16 | E13: Ouvrier | F13: M | G13: 3 | H13: 190 | I13: 14.56 | J13: 2766.4 | K13: 0 | L13: 0 | M13: 18.2 | N13: 0 | O13: 21.84 | P13: 0 | Q13: 29.12 | R13: 2766.4 | S13: 553.28 | T13: 0 | Y13: 450 | Z13: 800 | AA13: 4569.68 | AB13: 3319.68 | AC13: 159159164 | AD13: =IF((AB13>=6000),6000*DONNEES!$J$14,AB13*DONNEES!$J$14) -> 148.721664 | AE13: =AB13*DONNEES!$I$39 -> 75.024768 | AF13: 224326 | AG13: =IF((AB13-W13)*DONNEES!$J$16>=900,900,(AB13-W13)*DONNEES!$J$16) -> 99.5904 | AH13: 321461 | AI13: =R13*DONNEES!$J$18 -> 82.992 | AJ13: 564.3456 | AK13: 2349.005568 | AO13: 2349.005568 | AP13: -15.0994432 | AQ13: 0 | AR13: 4163.351168
A14: 7 | B14: SAID SAID | C14: 1966-04-04 | D14: 1986-01-01 | E14: Ouvrier | F14: M | G14: 7 | H14: 190 | I14: 12.02 | J14: 2283.8 | K14: 0 | L14: 0 | M14: 15.025 | N14: 0 | O14: 18.03 | P14: 0 | Q14: 24.04 | R14: 2283.8 | S14: 570.95 | T14: 0 | V14: 500 | W14: 800 | X14: 350 | Y14: 558 | Z14: 650 | AA14: 5712.75 | AB14: 4504.75 | AC14: 159159165 | AD14: =IF((AB14>=6000),6000*DONNEES!$J$14,AB14*DONNEES!$J$14) -> 201.8128 | AE14: =AB14*DONNEES!$I$39 -> 101.80735 | AF14: 224327 | AG14: =IF((AB14-W14)*DONNEES!$J$16>=900,900,(AB14-W14)*DONNEES!$J$16) -> 111.1425 | AH14: 321462 | AI14: =R14*DONNEES!$J$18 -> 68.514 | AJ14: 570.3075 | AK14: 3451.16585 | AL14: oui | AM14: 1000 | AN14: 250 | AO14: 3106.049265 | AP14: 60.6049265 | AQ14: 0 | AR14: 5229.47335
A15: 8 | B15: SAID SAID | C15: 1977-09-02 | D15: 1986-04-21 | E15: Technicien | F15: D | G15: 1 | H15: 190 | I15: 15 | J15: 2850 | K15: 17 | L15: 5 | M15: 18.75 | N15: 10 | O15: 22.5 | P15: 2 | Q15: 30 | R15: 3228.75 | S15: 807.1875 | T15: 170 | Y15: 150 | AA15: 4355.9375 | AB15: 4205.9375 | AC15: 159159166 | AD15: =IF((AB15>=6000),6000*DONNEES!$J$14,AB15*DONNEES!$J$14) -> 188.426 | AE15: =AB15*DONNEES!$I$39 -> 95.0541875 | AF15: 224328 | AG15: =IF((AB15-W15)*DONNEES!$J$16>=900,900,(AB15-W15)*DONNEES!$J$16) -> 126.178125 | AH15: 321463 | AI15: =R15*DONNEES!$J$18 -> 96.8625 | AJ15: 715.009375 | AK15: 2984.407312 | AO15: 2984.407312 | AP15: 48.44073125 | AQ15: 18.44073125 | AR15: 3830.975956
A16: 9 | B16: SAID SAID | C16: 1981-10-09 | D16: 2005-02-11 | E16: Informaticien | F16: M | G16: 3 | H16: 156 | I16: 15 | J16: 2340 | K16: 11 | L16: 5 | M16: 18.75 | N16: 2 | O16: 22.5 | P16: 4 | Q16: 30 | R16: 2598.75 | S16: 389.8125 | T16: 110 | U16: 1000 | Y16: 450 | AA16: 4548.5625 | AB16: 4098.5625 | AC16: 159159167 | AD16: =IF((AB16>=6000),6000*DONNEES!$J$14,AB16*DONNEES!$J$14) -> 183.6156 | AE16: =AB16*DONNEES!$I$39 -> 92.6275125 | AF16: 224329 | AG16: =IF((AB16-W16)*DONNEES!$J$16>=900,900,(AB16-W16)*DONNEES!$J$16) -> 122.956875 | AH16: 321464 | AI16: =R16*DONNEES!$J$18 -> 77.9625 | AJ16: 696.755625 | AK16: 2924.644387 | AO16: 2924.644387 | AP16: 42.46443875 | AQ16: 0 | AR16: 4071.400012
A17: 10 | B17: SAID SAID | C17: 1985-07-01 | D17: 2006-05-28 | E17: Secrétaire | F17: C | G17: 0 | H17: 130 | I17: 9.66 | J17: 1255.8 | K17: 26 | L17: 9 | M17: 12.075 | N17: 13 | O17: 14.49 | P17: 4 | Q17: 19.32 | R17: 1630.125 | S17: 244.51875 | T17: 260 | Y17: 0 | AA17: 2134.64375 | AB17: 2134.64375 | AC17: 159159168 | AD17: =IF((AB17>=6000),6000*DONNEES!$J$14,AB17*DONNEES!$J$14) -> 95.63204 | AE17: =AB17*DONNEES!$I$39 -> 48.24294875 | AF17: 224330 | AG17: =IF((AB17-W17)*DONNEES!$J$16>=900,900,(AB17-W17)*DONNEES!$J$16) -> 64.0393125 | AH17: 321465 | AI17: =R17*DONNEES!$J$18 -> 48.90375 | AJ17: 362.8894375 | AK17: 1514.936261 | AO17: 1514.936261 | AP17: 0 | AQ17: 0 | AR17: 1877.825699
A18: 11 | B18: SAID SAID | C18: 1978-04-08 | D18: 2006-05-30 | E18: Ouvrier | F18: C | G18: 0 | H18: 120 | I18: 10 | J18: 1200 | K18: 0 | M18: 12.5 | O18: 15 | Q18: 20 | R18: 1200 | S18: 180 | T18: 0 | Y18: 0 | AA18: 1380 | AB18: 1380 | AC18: 159159169 | AD18: =IF((AB18>=6000),6000*DONNEES!$J$14,AB18*DONNEES!$J$14) -> 61.824 | AE18: =AB18*DONNEES!$I$39 -> 31.188 | AF18: 224331 | AG18: =IF((AB18-W18)*DONNEES!$J$16>=900,900,(AB18-W18)*DONNEES!$J$16) -> 41.4 | AH18: 321466 | AI18: =R18*DONNEES!$J$18 -> 36 | AJ18: 234.6 | AK18: 974.988 | AO18: 974.988 | AP18: 0 | AQ18: 0 | AR18: 1209.588
A19: 12 | B19: SAID SAID | C19: 1980-06-07 | D19: 2006-05-30 | E19: Ingénieur | F19: M | G19: 8 | H19: 190 | I19: 60 | J19: 11400 | K19: 14 | L19: 2 | M19: 75 | N19: 5 | O19: 90 | P19: 7 | Q19: 120 | R19: 12840 | S19: 1926 | T19: 140 | U19: 800 | V19: 800 | W19: 1000 | Y19: 558 | AA19: 18064 | AB19: 17506 | AC19: 159159170 | AD19: =IF((AB19>=6000),6000*DONNEES!$J$14,AB19*DONNEES!$J$14) -> 268.8 | AE19: =AB19*DONNEES!$I$39 -> 395.6356 | AF19: 224332 | AG19: =IF((AB19-W19)*DONNEES!$J$16>=900,900,(AB19-W19)*DONNEES!$J$16) -> 495.18 | AH19: 321467 | AI19: =R19*DONNEES!$J$18 -> 385.2 | AJ19: 2000 | AK19: 13961.1844 | AO19: 13961.1844 | AP19: 3313.472696 | AQ19: 3223.472696 | AR19: 13295.7117
A20: 13 | B20: SAID SAID | C20: 1960-01-12 | D20: 2006-07-01 | E20: Comptable | F20: M | G20: 2 | H20: 190 | I20: 20 | J20: 3800 | K20: 7 | L20: 5 | M20: 25 | N20: 1 | O20: 30 | P20: 1 | Q20: 40 | R20: 3995 | S20: 599.25 | T20: 70 | Y20: 300 | AA20: 4964.25 | AB20: 4664.25 | AC20: 159159171 | AD20: =IF((AB20>=6000),6000*DONNEES!$J$14,AB20*DONNEES!$J$14) -> 208.9584 | AE20: =AB20*DONNEES!$I$39 -> 105.41205 | AF20: 224333 | AG20: =IF((AB20-W20)*DONNEES!$J$16>=900,900,(AB20-W20)*DONNEES!$J$16) -> 139.9275 | AH20: 321468 | AI20: =R20*DONNEES!$J$18 -> 119.85 | AJ20: 792.9225 | AK20: 3297.17955 | AO20: 3297.17955 | AP20: 79.717955 | AQ20: 34.717955 | AR20: 4355.384095
A21: 14 | B21: SAID SAID | C21: 1977-04-08 | D21: 2006-08-04 | E21: Ingénieur | F21: C | G21: 0 | H21: 190 | I21: 60 | J21: 11400 | K21: 17 | L21: 7 | M21: 75 | N21: 4 | O21: 90 | P21: 6 | Q21: 120 | R21: 13005 | S21: 1950.75 | T21: 170 | U21: 300 | V21: 300 | Y21: 0 | AA21: 15725.75 | AB21: 15725.75 | AC21: 159159172 | AD21: =IF((AB21>=6000),6000*DONNEES!$J$14,AB21*DONNEES!$J$14) -> 268.8 | AE21: =AB21*DONNEES!$I$39 -> 355.40195 | AF21: 224334 | AG21: =IF((AB21-W21)*DONNEES!$J$16>=900,900,(AB21-W21)*DONNEES!$J$16) -> 471.7725 | AH21: 321469 | AI21: =R21*DONNEES!$J$18 -> 390.15 | AJ21: 2000 | AK21: 12239.62555 | AO21: 12239.62555 | AP21: 2728.142687 | AQ21: 2728.142687 | AR21: 11511.48286
A22: 15 | B22: SAID SAID | C22: 1979-05-06 | D22: 2006-09-05 | E22: Technicien | F22: M | G22: 4 | H22: 180 | I22: 15 | J22: 2700 | K22: 0 | M22: 18.75 | O22: 22.5 | Q22: 30 | R22: 2700 | S22: 405 | T22: 0 | V22: 300 | Y22: 486 | AA22: 3891 | AB22: 3405 | AC22: 159159173 | AD22: =IF((AB22>=6000),6000*DONNEES!$J$14,AB22*DONNEES!$J$14) -> 152.544 | AE22: =AB22*DONNEES!$I$39 -> 76.953 | AF22: 224335 | AG22: =IF((AB22-W22)*DONNEES!$J$16>=900,900,(AB22-W22)*DONNEES!$J$16) -> 102.15 | AH22: 321470 | AI22: =R22*DONNEES!$J$18 -> 81 | AJ22: 578.85 | AK22: 2413.503 | AO22: 2413.503 | AP22: -8.6497 | AQ22: 0 | AR22: 3478.353
A23: 16 | B23: SAID SAID | C23: 1977-01-01 | D23: 2006-10-01 | E23: Concierge | F23: M | G23: 2 | H23: 190 | I23: 9.66 | J23: 1835.4 | K23: 0 | M23: 12.075 | O23: 14.49 | Q23: 19.32 | R23: 1835.4 | S23: 275.31 | T23: 0 | Y23: 300 | AA23: 2410.71 | AB23: 2110.71 | AC23: 159159174 | AD23: =IF((AB23>=6000),6000*DONNEES!$J$14,AB23*DONNEES!$J$14) -> 94.559808 | AE23: =AB23*DONNEES!$I$39 -> 47.702046 | AF23: 224336 | AG23: =IF((AB23-W23)*DONNEES!$J$16>=900,900,(AB23-W23)*DONNEES!$J$16) -> 63.3213 | AH23: 321471 | AI23: =R23*DONNEES!$J$18 -> 55.062 | AJ23: 358.8207 | AK23: 1491.244146 | AO23: 1491.244146 | AP23: 0 | AQ23: 0 | AR23: 2150.064846
A24: =A23+1 -> 17 | B24: SAID SAID | J24: =H24*I24 -> 0 | K24: =L24+N24+P24 -> 0 | M24: =(I24*25%)+I24 -> 0 | O24: =(I24*50%)+I24 -> 0 | Q24: =(I24*100%)+I24 -> 0 | R24: =J24+L24*M24+N24*O24+P24*Q24 -> 0 | S24: =VLOOKUP(($B$4-D24)/365,Barèmes_d_an,2)*R24 -> 0 | T24: =K24*10 -> 0 | Y24: =IF(G24>6,(3*150)+(3*36),IF(G24>3,(3*150)+(G24-3)*36,150*G24)) -> 0 | AA24: =R24+S24+T24+U24+V24+W24+X24+Y24+Z24 -> 0 | AB24: =AA24-Y24-Z24 -> 0 | AD24: =IF((AB24>=6000),6000*DONNEES!$J$14,AB24*DONNEES!$J$14) -> 0 | AE24: =AB24*DONNEES!$I$39 -> 0 | AG24: =IF((AB24-W24)*DONNEES!$J$16>=900,900,(AB24-W24)*DONNEES!$J$16) -> 0 | AI24: =R24*DONNEES!$J$18 -> 0 | AJ24: =IF((AB24-W24-X24)*17%>=2000,2000,(AB24-W24-X24)*17%) -> 0 | AK24: =AB24-AD24-AE24-AG24-AI24-AJ24 -> 0 | AO24: =IF(AL24="oui",IF((AM24+AN24)>=AK24*10%,AK24-(AK24*10%),AK24-(AM24+AN24)),IF(AN24>=AK24*10%,AK24-(AK24*10%),AK24-AN24)) -> 0 | AP24: =AO24*VLOOKUP(AO24,IR,2)-VLOOKUP(AO24,IR,3) -> 0 | AQ24: =IF(AP24-IF(G24=0,0,IF((G24+1)<=6,(G24+1)*15,6*15))<0,0,AP24-IF(G24=0,0,IF((G24+1)<=6,(G24+1)*15,6*15))) -> 0 | AR24: =AA24-AD24-AE24-AG24-AI24-AQ24 -> 0

Sheet Bulletin de Paie
C2: =DONNEES!D4 -> STE XXXXXXX | E2: =DONNEES!D6 -> SARL | F2: de Capital de : | H2: =DONNEES!G6 -> 100000 | M2: MOIS DE PAIE :
C3: =DONNEES!D20 ->  | M3: =+'B.D. ETAT DE PAIE'!B4 -> 2022-01-31
D4: N° TEL : | E4: =+DONNEES!D22 -> 000000000 | G4: N° FAX : | H4: =+DONNEES!D24 -> 00000000
C5: CNSS : | D5: =DONNEES!D8 -> 172172172 | E5: N° IF : | F5: =DONNEES!D10 -> 414141 | G5: N° PAT : | H5: =DONNEES!D8 -> 172172172
C6: N° RC : | D6: =+DONNEES!D12 -> 222222 | E6: N° CIMR : | F6: =+DONNEES!D16 -> 123456789 | G6: N° ASSUR : | H6: =+DONNEES!D18 -> 123456789
A10: BULLETIN DE PAIE
A12: Matricule | D12: Nom et prénom | G12: Fonction | M12: Mode de Paiement
A13: 13 | D13: =VLOOKUP(A13,ETAT_PAIE,2) -> SAID SAID | G13: =VLOOKUP(A13,ETAT_PAIE,5) -> Comptable | M13: Virement
A14: Date Naissance | D14: Date Embauche | E14: Sit. Fam | F14: Nbre Enf | G14: Matricule CIMR | H14: Matricule ASSUR | J14: Matricule CNSS | M14: Durée Travaillée
A15: =VLOOKUP(A13,ETAT_PAIE,3) -> 1960-01-12 | D15: =VLOOKUP(A13,ETAT_PAIE,4) -> 2006-07-01 | E15: =VLOOKUP(A13,ETAT_PAIE,6) -> M | F15: =VLOOKUP(A13,ETAT_PAIE,7) -> 2 | G15: =VLOOKUP(A13,ETAT_PAIE,32) -> 224333 | H15: =VLOOKUP(A13,ETAT_PAIE,34) -> 321468 | J15: =VLOOKUP(A13,ETAT_PAIE,29) -> 159159171 | M15: =('B.D. ETAT DE PAIE'!B4-D15) -> 5693
A17: Libellé | F17: Bases | H17: Taux | I17: Gains | M17: Retenues
B18: SALAIRE DE BASE | I18: =VLOOKUP(A13,ETAT_PAIE,18) -> 3995
C19: Heures normales | F19: =VLOOKUP(A13,ETAT_PAIE,8) -> 190 | H19: =VLOOKUP(A13,ETAT_PAIE,9) -> 20 | I19: =VLOOKUP(A13,ETAT_PAIE,10) -> 3800
C20: Heures supplémentaires | F20: =VLOOKUP(A13,ETAT_PAIE,11) -> 7 | H20: =IF(F20=0,0,I20/F20) -> 27.85714286 | I20: =VLOOKUP(A13,ETAT_PAIE,13)*VLOOKUP(A13,ETAT_PAIE,12)+VLOOKUP(A13,ETAT_PAIE,15)*VLOOKUP(A13,ETAT_PAIE,14)+VLOOKUP(A13,ETAT_PAIE,17)*VLOOKUP(A13,ETAT_PAIE,16) -> 195
B21: Prime d'ancienneté | I21: =VLOOKUP($A$13,ETAT_PAIE,19) -> 599.25
B22: Prime de rendement | I22: =VLOOKUP($A$13,ETAT_PAIE,20) -> 70
B23: Prime de responsabilité | I23: =VLOOKUP($A$13,ETAT_PAIE,21) -> 0
B24: Prime d'assiduité | I24: =VLOOKUP($A$13,ETAT_PAIE,22) -> 0
B25: Avantages en Natures | I25: =VLOOKUP($A$13,ETAT_PAIE,23) -> 0
B26: Avantages en Espèces | I26: =VLOOKUP($A$13,ETAT_PAIE,24) -> 0
B27: Allocations familiales | I27: =VLOOKUP($A$13,ETAT_PAIE,25) -> 300
B28: Frais de déplacements justifies | I28: =VLOOKUP($A$13,ETAT_PAIE,26) -> 0
B29: SALAIRE BRUT | I29: =VLOOKUP(A13,ETAT_PAIE,27) -> 4964.25
B30: SALAIRE BRUT IMPOSABLE | I30: =VLOOKUP(A13,ETAT_PAIE,28) -> 4664.25
B31: Cotisation CNSS | M31: =VLOOKUP(A13,ETAT_PAIE,30) -> 208.9584
B32: Cotisation AMO | M32: =VLOOKUP(A13,ETAT_PAIE,31) -> 105.41205
B33: Cotisation CIMR | M33: =VLOOKUP(A13,ETAT_PAIE,33) -> 139.9275
B34: Cotisation Assurance | M34: =VLOOKUP(A13,ETAT_PAIE,35) -> 119.85
B35: SALAIRE NET IMPOSABLE | I35: =VLOOKUP(A13,ETAT_PAIE,41) -> 3297.17955
B36: IR net | M36: =VLOOKUP(A13,ETAT_PAIE,43) -> 34.717955
A39: TOTAUX | I39: =SUM(I19:K28) -> 4964.25 | M39: =SUM(M31:N34)+M36 -> 608.865905
F40: NET A PAYER | I40: =VLOOKUP(A13,ETAT_PAIE,44) -> 4355.384095
F41: SIGNATURE :
A45: Dans votre intérêt, conservez ce bulletin sans limitation de durée.
